Cogmind - Beta 14 @@@ ROGUE MODE // 2024.10.18 @ 07:48:40 Player: star Result: Destroyed by D-53 Grenadier with Mini Grenade Launcher Performance ------------- Evolutions (0) 0 Regions Visited (4) 800 Robots Destroyed (13) 65 Value Destroyed (473) 473 Prototype IDs (0) 0 Alien Tech Used (0) 0 Bonus (54) 54 TOTAL SCORE: 1392 Bonus ------- Follower Combat Kills 85 Friendly Fire -31 Cogmind --------- Core Integrity 0/250 Matter 292/300 Energy 248/250 System Corruption 0% Temperature Cool (0) Movement Core (300) Ox5 Location -9/Mines Parts ------- > --- POWER (1) -------- Ion Engine > --- PROPULSION (2) --- (None) > --- UTILITY (2) ------ Small Storage Unit Hacking Suite > --- WEAPON (2) ------- Beam Rifle Heavy Assault Rifle > --- INVENTORY (8) ---- Wheel Wheel Experimental Sensor Array Core Shielding Light Armor Plating Rocket Launcher Peak State ------------ > --- POWER ------------ Ion Engine > --- PROPULSION ------- Wheel Wheel > --- UTILITY ---------- Small Storage Unit Hacking Suite > --- WEAPON ----------- Beam Rifle Heavy Assault Rifle > --- INVENTORY -------- Wheel Wheel Experimental Sensor Array Core Shielding Light Armor Plating Rocket Launcher [Rating: 12] Favorites ----------- Power Ion Engine Engine Ion Engine Propulsion Wheel Wheel Wheel Utility Hacking Suite Device Terrain Scanner Storage Small Storage Unit Processor Transport Network Coupler Hackware Hacking Suite Protection Core Shielding Weapon Beam Rifle Energy Gun Beam Rifle Energy Cannon Beam Cannon Ballistic Gun Heavy Assault Rifle Launcher Rocket Launcher Build | -11 -10 -10 -10 -9 ------- Run | Yrd Mat Min Exi Min Slots Evolved . | . . . . . Power . | . . . . . Propulsion . | . . . . . Utility . | . . . . . Weapon . | . . . . . Parts Attached 18 | 6 6 4 . 2 Power 1 | 1 . . . . Engine 1 | 1 . . . . Core . | . . . . . Reactor . | . . . . . Propulsion 3 | 2 1 . . . Treads . | . . . . . Leg . | . . . . . Wheel 3 | 2 1 . . . Hover . | . . . . . Flight . | . . . . . Utility 6 | 1 3 2 . . Device 1 | . 1 . . . Storage 2 | 1 . 1 . . Processor 1 | . 1 . . . Hackware 1 | . 1 . . . Protection 1 | . . 1 . . Artifact . | . . . . . Weapon 8 | 2 2 2 . 2 Energy Gun 2 | 1 . 1 . . Energy Cannon 2 | . 2 . . . Ballistic Gun 3 | 1 . 1 . 1 Ballistic Cannon . | . . . . . Launcher 1 | . . . . 1 Special Weapon . | . . . . . Impact Weapon . | . . . . . Slashing Weapon . | . . . . . Piercing Weapon . | . . . . . Special Melee Weapon . | . . . . . Unidentified Prototypes . | . . . . . Parts Lost 2 | . . . . 2 Power . | . . . . . Propulsion 2 | . . . . 2 Utility . | . . . . . Weapon . | . . . . . Highest Loss Streak 2 | . . . . 2 To Critical Strikes . | . . . . . Average Slot Usage (%) 99 | . 97 100 100 100 Engine 14 | . 14 14 14 14 Wheel 28 | . 28 28 28 28 Storage 8 | . 9 6 14 14 Processor 2 | . 7 . . . Hackware 12 | . 4 14 14 14 Protection 3 | . . 6 . . Energy Gun 10 | . . 13 14 14 Energy Cannon 6 | . 26 1 . . Ballistic Gun 10 | . . 13 14 7 Peak Build Rating 12 | 6 9 12 12 12 Average Rating 10 | 4 7 11 12 12 On Entrance 7 | . 6 9 12 12 Naked Turns . | . . . . . Heaviest Build 17 | 12 17 16 16 17 Greatest Support 26 | 26 26 20 20 20 Greatest Overweight (x) . | . . . . . Average Overweight (x) . | . . . . . Largest Inventory Capacity 8 | 8 8 8 8 8 Average Capacity 6 | 6 7 6 8 8 Most Carried 6 | . 5 6 6 6 Average Carried 4 | . 2 5 6 6 Final Capacity 8 | 8 5 8 8 8 Final Carried 6 | . 5 6 6 6 Class Distribution -------------------- 100% | Mutant Dominant Class ---------------- Mutant | -10/Materials Mutant | -10/Mines Mutant | -10/Exiles Mutant | -9/Mines Resources | -11 -10 -10 -10 -9 ----------- Run | Yrd Mat Min Exi Min Matter Collected 451 | 186 124 95 . 46 Remotely . | . . . . . Salvage Created 639 | . 245 337 . 57 Parts 33 | . 18 15 . . Haulers Intercepted 1 | . 1 . . . Recyclers Shooed . | . . . . . Parts Field Recycled . | . . . . . Retrieved Matter . | . . . . . Parts Self-Destructed . | . . . . . Prevented . | . . . . . Kills | -11 -10 -10 -10 -9 ------- Run | Yrd Mat Min Exi Min Combat Hostiles Destroyed 30 | . 4 7 . 19 Guns 5 | . . 5 . . Cannons 5 | . 3 2 . . AOE 19 | . . . . 19 Classes Destroyed 5 | . 3 1 . 1 Hauler 1 | . 1 . . . Operator 1 | . 1 . . . Grunt 9 | . 4 5 . . Sentry 2 | . . 2 . . Assembled 19 | . . . . 19 Best Kill Streak 19 | . 2 2 . 19 Combat Bots Only 19 | . 2 2 . 19 Max Kills in Single Turn 7 | . 2 1 . 7 Gunslinging . | . . . . . Exploded 7 | . . . . 7 Melee . | . . . . . Uniques/NPCs Destroyed . | . . . . . Combat | -11 -10 -10 -10 -9 -------- Run | Yrd Mat Min Exi Min Hostile Shots Fired 55 | . 4 39 . 12 Missed 14 | . . 9 . 5 Damage Taken 604 | . 45 422 . 137 Core 259 | . 11 200 . 48 Absorbed by Shields . | . . . . . Redirected to Shielding 12 | . . 12 . . Core Remaining (%) 100 | 100 . . . . Volleys Fired 41 | . 15 22 . 4 Largest 2 | . 2 2 . 1 Hottest 120 | . 120 120 . 33 Shots Fired 78 | . 30 44 . 4 Gun 30 | . . 30 . . Cannon 44 | . 30 14 . . Launcher 4 | . . . . 4 Special . | . . . . . Kinetic 15 | . . 15 . . Thermal 59 | . 30 29 . . Explosive 4 | . . . . 4 Electromagnetic . | . . . . . Robot Hit Streak 8 | . 5 8 . 7 Robot Miss Streak 6 | . 6 3 . . Penetration Max . | . . . . . Secondary Targets . | . . . . . Shots Hit Robots 42 | . 9 30 . 3 Core Hits 56 | . 5 15 . 36 Critical Kills 1 | . 1 . . . Critical Parts Destroyed . | . . . . . Critical Strikes 1 | . 1 . . . Meltdown 1 | . 1 . . . Melee Attacks . | . . . . . Impact . | . . . . . Slashing . | . . . . . Piercing . | . . . . . Sneak Attacks . | . . . . . Combat Hostiles . | . . . . . Follow-up Attacks . | . . . . . Damage Inflicted 2097 | . 193 462 . 1442 Guns 306 | . . 306 . . Cannons 349 | . 193 156 . . Explosions 1442 | . . . . 1442 Melee . | . . . . . Ramming . | . . . . . Kinetic 133 | . . 133 . . Thermal 522 | . 193 329 . . Explosive 1442 | . . . . 1442 Electromagnetic . | . . . . . Impact . | . . . . . Slashing . | . . . . . Piercing . | . . . . . Highest Corruption . | . . . . . Average Corruption . | . . . . . Corruption Purged . | . . . . . Corruption Blocked . | . . . . . Overload Shots . | . . . . . Overflow Damage 52 | . . . . 52 Projectiles . | . . . . . Explosions 52 | . . . . 52 Melee . | . . . . . Knockbacks . | . . . . . Impact . | . . . . . Kinetic . | . . . . . Secondary . | . . . . . Self-Inflicted Damage . | . . . . . Shots . | . . . . . Rammed . | . . . . . Targets Rammed . | . . . . . Kicked . | . . . . . Crushed . | . . . . . Highest Temperature 501 | . 378 501 . . Average Temperature 156 | . 161 152 . . Received Heat Transfer 216 | . 24 192 . . Effects 4 | . 1 3 . . Shutdowns 1 | . . 1 . . Energy Bleed 2 | . 1 1 . . Short Circuit 1 | . . 1 . . Siege Activations . | . . . . . Robots Corrupted . | . . . . . Combat Hostiles . | . . . . . Parts Fried . | . . . . . Impact Corruptions . | . . . . . Robots Melted 1 | . 1 . . . Combat Hostiles 1 | . 1 . . . Parts Melted 5 | . 2 3 . . Heat Transferred 1184 | . 407 777 . . Parts Sabotaged . | . . . . . Parts Stolen . | . . . . . Parts Stripped . | . . . . . Power Chain Reactions . | . . . . . Alert | -11 -10 -10 -10 -9 ------- Run | Yrd Mat Min Exi Min Peak Influence 155 | . 152 155 . 29 Initial . | . . . . . Average 67 | . 68 73 . 20 Maximum Alert Level . | . . . . . Low Security (%) 100 | 100 100 100 . 100 Level 1 . | . . . . . Level 2 . | . . . . . Level 3 . | . . . . . Level 4 . | . . . . . Level 5 . | . . . . . High Security . | . . . . . Max Security . | . . . . . Squads Dispatched 1 | . 1 . . . Investigation . | . . . . . Extermination . | . . . . . Reinforcement 1 | . 1 . . . Assault . | . . . . . Garrison . | . . . . . Intercept . | . . . . . Searches Triggered . | . . . . . Construction Impeded . | . . . . . Haulers Reinforced . | . . . . . Active Scanning Responses . | . . . . . Cargo Convoy Interrupts . | . . . . . Stealth | -11 -10 -10 -10 -9 --------- Run | Yrd Mat Min Exi Min Distress Signals . | . . . . . Communications Jammed . | . . . . . Distress Signals . | . . . . . Times Spotted 35 | . 5 9 . 21 Peak Tracking Total 20 | . 2 2 . 20 Tactical Retreats 1 | . . 1 . . Traps | -11 -10 -10 -10 -9 ------- Run | Yrd Mat Min Exi Min Traps Triggered . | . . . . . Indirectly . | . . . . . Trap Hack Attempts . | . . . . . Triggered . | . . . . . Disarmed . | . . . . . Reprogrammed . | . . . . . Reused . | . . . . . Traps Extracted . | . . . . . Installed . | . . . . . Triggered . | . . . . . Machines | -11 -10 -10 -10 -9 ---------- Run | Yrd Mat Min Exi Min Machines Disabled 4 | . 2 2 . . Max in Single Turn 1 | . 1 1 . . Machines Repaired . | . . . . . Machines Dismantled . | . . . . . Machines Sabotaged . | . . . . . Overloaded Fab Kills . | . . . . . Hacking | -11 -10 -10 -10 -9 --------- Run | Yrd Mat Min Exi Min Machines Accessed 4 | . 3 . 1 . Terminals 3 | . 3 . . . Fabricators . | . . . . . Repair Stations . | . . . . . Recycling Units . | . . . . . Scanalyzers . | . . . . . Garrison Access . | . . . . . Total Hacks 16 | . 12 . 4 . Successful 10 | . 6 . 4 . Failed 6 | . 6 . . . Catastrophic . | . . . . . Database Lockouts . | . . . . . Manual 6 | . 6 . . . Terminals 12 | . 12 . . . Fabricators . | . . . . . Repair Stations . | . . . . . Recycling Units . | . . . . . Scanalyzers . | . . . . . Garrison Access . | . . . . . Terminal Hacks 8 | . 4 . 4 . Record 4 | . . . 4 . Alert Level 1 | . 1 . . . Unreport Threat 1 | . 1 . . . Maintenance Status 1 | . 1 . . . Hauler Manifests 1 | . 1 . . . Fabricator Hacks . | . . . . . Repair Station Hacks . | . . . . . Recycling Unit Hacks . | . . . . . Scanalyzer . | . . . . . Garrison Access Hacks . | . . . . . Unauthorized Hacks 2 | . 2 . . . Terminals 2 | . 2 . . . Botnet 2 | . 2 . . . Fabricators . | . . . . . Repair Stations . | . . . . . Recycling Units . | . . . . . Scanalyzers . | . . . . . Garrison Access . | . . . . . Data Cores Recovered . | . . . . . Used . | . . . . . Hacking Detections 2 | . 2 . . . Full Trace Events . | . . . . . Feedback Events . | . . . . . Feedback Blocked . | . . . . . Robot Schematics Acquired . | . . . . . Robots Built . | . . . . . Authchips . | . . . . . Time . | . . . . . Total Robot Build Rating . | . . . . . Part Schematics Acquired . | . . . . . Parts Built . | . . . . . Authchips . | . . . . . Time . | . . . . . Total Part Build Rating . | . . . . . Parts Repaired . | . . . . . Time . | . . . . . Parts Recycled . | . . . . . Recycled Matter . | . . . . . Retrieved Matter . | . . . . . Retrieved Components . | . . . . . Parts Scanalyzed . | . . . . . Part Schematics Acquired . | . . . . . Parts Damaged . | . . . . . Bothacking | -11 -10 -10 -10 -9 ------------ Run | Yrd Mat Min Exi Min Used RIF Installer . | . . . . . Robots Hacked . | . . . . . Non-combat . | . . . . . Combat . | . . . . . Robot Hacks Applied . | . . . . . Relay Couplers Released . | . . . . . Fabnet Peak Effective % . | . . . . . Robots Rewired . | . . . . . Allies Hacked . | . . . . . Hacks Repelled . | . . . . . Allies | -11 -10 -10 -10 -9 -------- Run | Yrd Mat Min Exi Min Total Allies 3 | . . 3 . . Largest Group 3 | . . 3 1 1 Highest-Rated Group 40 | . . 40 16 16 Highest-Rated Ally 16 | . . 16 16 16 Total Orders . | . . . . . Ally Attacks 24 | . . 19 . 5 Total Damage 271 | . . 239 . 32 Kills 5 | . . 4 . 1 Allies Corrupted . | . . . . . Allies Melted . | . . . . . Intel | -11 -10 -10 -10 -9 ------- Run | Yrd Mat Min Exi Min Robot Analysis Total . | . . . . . Derelict Logs Recovered 2 | . . 2 . . Drone Launches . | . . . . . Drone Recoveries . | . . . . . Exploration | -11 -10 -10 -10 -9 ------------- Run | Yrd Mat Min Exi Min Turns Passed 1036 | 43 205 610 156 22 Spaces Moved 816 | 39 155 476 132 14 Core 1 | 1 . . . . Treads . | . . . . . Legs . | . . . . . Wheels 815 | 38 155 476 132 14 Hover . | . . . . . Flight . | . . . . . Fastest Speed 50 | 50 80 80 80 80 Average Speed 82 | 89 88 80 80 80 Slowest Speed 100 | 100 90 80 80 80 Overloaded Moves . | . . . . . Propulsion Burnouts . | . . . . . Robots Hopped . | . . . . . Cave-ins Triggered . | . . . . . Exploration Rate (%) 36 | 3 32 93 51 5 Regions Visited 4 Branch Regions 3 Pre-discovered Areas 2 | . . 1 1 . Known Exits Taken . | . . . . . Unknown Exits Taken 4 | 1 1 1 1 . Scrap Searched 2 | . . 2 . . Spaces Dug . | . . . . . Terrain Destroyed 37 | . . . . 37 Melee . | . . . . . Projectile . | . . . . . AOE 37 | . . . . 37 Terrain Rammed . | . . . . . Walls Destroyed . | . . . . . Machines Disabled . | . . . . . Actions | -11 -10 -10 -10 -9 --------- Run | Yrd Mat Min Exi Min Total 1099 | 44 193 660 182 20 Wait 211 | . 6 154 51 . Move 812 | 38 154 475 131 14 Hop . | . . . . . Pick Up 11 | . 8 3 . . Fast Attach 7 | 6 1 . . . Attach . | . . . . . Detach . | . . . . . Swap 11 | . 5 4 . 2 Drop 6 | . 4 2 . . Fire 41 | . 15 22 . 4 Melee . | . . . . . Ram . | . . . . . Kick . | . . . . . Crush . | . . . . . Escape Stasis . | . . . . . Rewire . | . . . . . Trap . | . . . . . Miscellaneous . | . . . . . Route ------- -11/Scrapyard -10/Materials -10/Mines (discovered 3 exits: [*Mat x2] / *Exi) -10/Exiles -9/Mines History --------- Turn | Location | Event 25 | -11/Scrapyard | Discovered new exit (range 14) 44 | -11/Scrapyard | Entered Materials 244 | -10/Materials | Discovered new exit (range 7) 249 | -10/Materials | Entered Mines 274 | -10/Mines | Core integrity fell below 50% 312 | -10/Mines | Build established: Mutant 352 | -10/Mines | Assisted by bots powering up and referring to "LRC-V3" 374 | -10/Mines | Discovered new exit (range 10) 525 | -10/Mines | Received a Rocket Launcher from a helpful Derelict 531 | -10/Mines | Learned location of Zion (-6) 544 | -10/Mines | Learned Materials stockpile data 553 | -10/Mines | Found a damaged Exp. Sensor Array with a note attached 556 | -10/Mines | Found Prototype Device 662 | -10/Mines | Discovered new exit (range 10) 751 | -10/Mines | Core integrity fell below 20% 786 | -10/Mines | Deemed a non-threat by the Exiles lab entrance 786 | -10/Mines | Discovered new exit (range 5) 859 | -10/Mines | Entered Exiles 859 | -10/Exiles | Accompanied by 1 ally 881 | -10/Exiles | Met 8R-AWN 893 | -10/Exiles | Met EX-HEX 916 | -10/Exiles | Met EX-BIN 930 | -10/Exiles | Met EX-DEC 958 | -10/Exiles | Discovered new exit (range 10) 1015 | -10/Exiles | Entered Mines 1015 | -9/Mines | Accompanied by 1 ally 1016 | -9/Mines | Assembled infested the area 1037 | -9/Mines | Destroyed by D-53 Grenadier with Mini Grenade Launcher Last Messages --------------- 01021_ as-06573 destroyed. 01021_ as-65063 destroyed. 01021_ Destroyed Asb. Hover Unit. 01021_ Destroyed Asb. F-torch. 01021_ as-18699 destroyed. 01021_ Destroyed Asb. Hover Unit. 01021_ as-38228 destroyed. 01021_ as-29510 destroyed. 01023_ as-61306 destroyed. 01023_ as-04624 destroyed. 01023_ as-34548 destroyed. 01023_ Destroyed Asb. Hover Unit. 01023_ as-67445 destroyed. 01025_ as-71463 destroyed. 01025_ as-78805 destroyed. 01026_ as-04053 destroyed. 01031_ Acquired 46 matter. 01037_ C-30 ARC bursts open, deploying its payload. 01037_ D-53 Grenadier unfolds itself. 01037_ Wheel destroyed. Map ----- +----------------------------------------------------+ | ???????????????????????????????????? | | ???????????????????????????????????? | | ???????????????????????????????????? | | ???????????????????????????????????? | | ???????????????????????????????????? | | ???????????????????????????????????? | | ???????????????????????????????????? | | ???????????????????????????????????? | | ???????????????????????????????????? | | ???????????????????????????????????? | | ???????????????????????????????????? | | ???????????????????????????????????? | | ???????????????????????????????????? | | ???????????????????????????????????? | | ???????????????????????????????????? | | ???????????????????????????????????? | | ???????????????????????????????????? | | ???????????????????????####????????? | | ??????????????????????## #####????? | | ??????????????????????# #????? | | ?????????????????????## #????? | | ?????????????????????# < ##???? | | ?????????????????????# #???? | | ?????????????????????# #???? | | ?????????????????????## #???? | | ??????????????????????# @ #???? | | ????????????????????# ###???? | | ?????????? ?????# ##?????? | | ????????? ### g ##??????? | | ????????? d%d ##??????? | | ???????????????##### #??????? | | ???????????????????# ] #??????? | | ???????????????????### #??????? | | ?????????????????????########??????? | | ???????????????????????????????????? | | ???????????????????????????????????? | | ???????????????????????????????????? | | ???????????????????????????????????? | | ???????????????????????????????????? | | ???????????????????????????????????? | | ???????????????????????????????????? | | ???????????????????????????????????? | | ???????????????????????????????????? | | ???????????????????????????????????? | | ???????????????????????????????????? | | ???????????????????????????????????? | | ???????????????????????????????????? | | ???????????????????????????????????? | | ???????????????????????????????????? | | ???????????????????????????????????? | +----------------------------------------------------+ Best States ------------- Heat Dissipation 25 Energy Generation 10 Energy Capacity 250 Matter Stores 300 Matter Capacity 300 Sight Range 16 Terrain Scan Range 14 Terrain Scan Density 10 Core Shielding 20 Evasion (%) 44 Offensive Hacking 10 Item Schematics ----------------- None Robot Schematics ------------------ None Fabricated ------------ Nothing Alien Tech Used ----------------- None Achievements -------------- None Challenges ------------ None Game ------ Seed SegregatorGhostRecalibrator Manual? 0 Play Time 00:09:30 Cumulative 118.2 hours Start 2024.10.18 @ 07:39:39 End 2024.10.18 @ 07:48:40 Sessions 1 Manual Loads 0 Difficulty Rogue Special Mode None Game No. 201 Rogue 201 Adventurer 0 Explorer 0 Win Type - Total 1 Types 1/0/0/0/0/0/0/0/0 Lore% 51 Gallery% 59 Achievement% 46 Wizard Run 0 Options --------- Layout 0 ASCII 0 Keyboard 1 Movement Numpad Keybinds 0 Fullscreen 2 Font 18/SmallcapsGlow Map View 76x50 Zoom Use 0% Tactical HUD 1 Map Filters NONE Filters NONE Steam 1 RUN: 3daa5081-34e9-4e05-812d-778e04bb47a7